{"text_format":"1","workbook":"xlsx","n_sheets":1,"sheets":["Sheet1"],"not_rendered":{"charts":0,"images":1,"macros":1,"external_links":0,"defined_names":0,"comments":0,"pivot_tables":0},"unopened":[],"bounds":{"document_bytes":16777216,"sheet_cells":100000,"rows_first":2000,"rows_last":500,"rows_between":2000,"halvings":0,"cell_chars":16384,"cell_head_chars":4096},"cells_cut":0,"cells_raw":0,"read":"whole","date_system":"1900"}

{"sheet":"Sheet1","index":0,"n_rows":338,"n_cols":52,"rows_kept":338,"cut":false,"hidden":false,"merged":[[328,21,328,23],[324,28,324,29],[256,8,256,9],[256,6,256,7],[257,13,257,14],[257,15,257,16],[256,27,256,28],[256,29,256,30],[257,21,257,22],[257,23,257,24],[275,14,275,15],[275,16,275,17],[320,17,320,18],[320,20,320,22],[320,24,320,26],[325,28,325,29],[305,7,305,8],[305,10,305,11],[306,6,306,7],[306,9,306,10],[306,12,306,13],[315,6,315,7],[315,11,315,12],[316,2,316,3],[316,7,316,8],[334,3,334,4],[334,8,334,9],[322,11,322,12],[322,14,322,15],[322,17,322,18],[325,8,325,10],[325,12,325,13],[325,15,325,16],[325,18,325,19],[333,3,333,4],[333,11,333,12],[317,2,317,3],[317,7,317,8],[319,5,319,6],[319,10,319,11],[324,15,324,16],[324,18,324,19],[335,9,335,10],[336,3,336,4],[336,8,336,9],[279,12,279,13],[279,14,279,15],[285,6,285,7],[290,5,290,6],[290,8,290,9],[290,11,290,12],[328,5,328,7],[328,9,328,10],[328,14,328,15],[329,5,329,6],[329,8,329,9],[329,11,329,13],[330,2,330,4],[330,9,330,11],[293,6,293,7],[320,11,320,12],[320,14,320,15],[324,8,324,10],[324,12,324,13],[321,5,321,6],[321,10,321,11],[322,20,322,22],[322,24,322,26],[270,34,270,35],[272,34,272,35],[279,33,279,34],[279,35,279,36],[299,16,299,17],[299,21,299,22],[299,24,299,25],[299,27,299,28],[314,4,314,5],[307,2,307,3],[307,7,307,8],[308,2,308,3],[308,7,308,8],[310,7,310,8],[310,10,310,11],[311,4,311,5],[312,2,312,3],[312,7,312,8],[300,4,300,5],[302,6,302,7],[302,9,302,10],[302,12,302,13],[304,4,304,5],[285,40,285,42],[289,4,289,5],[289,7,289,8],[289,10,289,11],[286,33,286,34],[286,36,286,37],[286,39,286,40],[288,4,288,5],[291,8,291,9],[291,13,291,14],[292,7,292,8],[292,10,292,11],[292,13,292,14],[294,9,294,10],[295,12,295,13],[298,10,298,11],[298,13,298,14],[298,18,298,19],[298,21,298,22],[286,47,286,49],[287,30,287,32],[287,41,287,43],[260,3,260,4],[267,22,267,23],[283,30,283,32],[284,5,284,6],[286,4,286,5],[287,6,287,7],[287,9,287,10],[263,41,263,43],[263,45,263,46],[263,48,263,49],[264,41,264,43],[261,37,261,39],[271,14,271,15],[271,16,271,17],[262,36,262,37],[264,37,264,39],[264,14,264,15],[264,21,264,22],[266,22,266,23],[269,18,269,19],[164,6,164,7],[164,4,164,5],[161,4,162,5],[161,6,162,7],[161,8,162,8],[166,20,168,20],[169,20,170,20],[159,26,163,26],[286,44,286,45],[238,35,247,35],[235,35,237,35],[242,33,249,33],[239,33,241,33],[231,33,235,33],[244,3,244,4],[229,3,229,4],[267,8,267,9],[267,28,267,29],[229,39,229,40],[230,41,230,42],[231,41,231,42],[234,40,234,41],[235,40,235,41],[184,3,186,3],[154,48,155,49],[157,46,157,48],[160,48,161,49],[160,50,161,50],[224,1,224,53],[199,4,199,5],[200,6,200,7],[200,9,200,10],[220,10,220,11],[220,15,220,16],[221,7,221,8],[219,5,219,6],[211,17,211,19],[211,21,211,22],[211,24,211,25],[213,16,213,17],[213,20,213,22],[213,24,213,26],[214,10,214,11],[214,15,214,16],[154,40,155,47],[160,29,162,29],[155,30,155,31],[197,5,197,6],[236,48,236,49],[237,41,237,42],[240,39,240,40],[228,33,230,33],[165,28,165,29],[157,28,157,29],[160,27,162,27],[158,27,159,27],[158,29,159,29],[198,45,198,47],[199,28,199,30],[199,33,199,35],[220,31,220,32],[220,36,220,37],[221,31,221,32],[219,29,219,30],[211,27,211,28],[211,30,211,31],[211,33,211,35],[213,32,213,33],[213,35,213,37],[175,41,175,42],[197,30,197,32],[168,32,168,35],[74,4,74,5],[74,6,74,7],[79,4,79,5],[79,6,79,7],[86,39,86,40],[83,37,83,38],[88,38,88,40],[143,1,143,53],[135,8,135,9],[135,13,135,14],[136,7,136,8],[138,5,138,6],[139,8,139,9],[139,13,139,14],[140,7,140,8],[132,32,132,33],[132,37,132,38],[133,33,133,34],[133,36,133,37],[134,29,134,30],[135,31,135,32],[137,29,137,30],[138,32,138,33],[111,40,111,42],[138,37,138,38],[139,31,139,32],[129,15,129,17],[129,19,129,20],[129,22,129,24],[129,26,129,27],[129,31,129,33],[132,5,132,6],[133,9,133,10],[133,12,133,13],[134,5,134,6],[127,19,127,21],[127,23,127,24],[127,26,127,27],[127,29,127,30],[127,32,127,34],[127,36,127,38],[127,44,127,46],[128,15,128,17],[128,19,128,20],[128,22,128,24],[128,26,128,27],[128,31,128,33],[107,45,107,47],[108,28,108,30],[108,33,108,35],[126,19,126,21],[126,23,126,24],[126,26,126,27],[126,29,126,30],[126,32,126,34],[126,36,126,38],[126,44,126,46],[123,25,123,26],[123,28,123,29],[123,31,123,32],[123,34,123,36],[124,18,124,20],[124,22,124,23],[124,25,124,26],[124,28,124,29],[124,31,124,32],[124,34,124,36],[112,40,112,42],[121,7,121,8],[121,10,121,12],[122,4,122,5],[122,7,122,8],[122,10,122,12],[123,18,123,20],[123,22,123,23],[116,9,116,10],[107,42,107,43],[107,36,107,38],[121,4,121,5],[1,1,1,53],[6,10,6,11],[21,19,21,20],[6,20,6,21],[12,40,14,40],[10,40,11,40],[11,49,11,50],[17,44,17,45],[15,40,16,40],[4,9,4,10],[4,27,4,28],[4,17,4,18],[26,6,26,7],[28,6,28,7],[28,9,28,10],[29,4,29,5],[30,4,30,5],[30,7,30,8],[30,10,30,11],[10,49,10,50],[6,29,6,30],[17,10,17,11],[17,17,17,18],[25,5,25,6],[27,4,27,5],[28,44,28,45],[28,46,28,47],[29,44,29,45],[29,46,29,47],[26,46,26,47],[24,44,24,45],[27,45,27,47],[8,16,8,17],[8,18,8,19],[9,21,9,22],[9,23,9,24],[41,7,41,9],[41,11,41,12],[41,14,41,15],[41,17,41,18],[41,20,41,21],[31,5,31,6],[31,8,31,9],[31,11,31,12],[38,12,38,13],[36,9,36,10],[38,17,38,19],[32,8,32,9],[32,13,32,14],[33,7,33,8],[33,10,33,11],[33,13,33,14],[52,1,52,53],[8,28,8,29],[8,30,8,31],[89,29,89,30],[82,24,84,24],[80,24,81,24],[55,34,55,35],[55,37,55,38],[55,40,55,41],[49,6,49,8],[44,9,44,10],[44,12,44,13],[45,5,45,6],[46,6,46,8],[48,6,48,7],[48,11,48,12],[41,23,41,25],[43,7,43,8],[34,6,34,7],[35,6,35,7],[35,9,35,10],[35,12,35,13],[43,12,43,13],[39,4,39,5],[56,38,56,39],[57,30,57,31],[58,33,58,34],[77,24,77,25],[74,40,74,41],[106,5,106,6],[66,4,67,5],[87,4,88,5],[72,6,72,7],[78,20,79,20],[75,20,77,20],[65,18,67,18],[88,18,90,18],[56,32,56,34],[61,30,61,31],[62,33,62,34],[101,36,101,37],[76,27,76,28],[76,29,76,30],[76,31,76,32],[86,33,86,34],[69,4,69,5],[101,39,101,40],[102,31,102,32],[96,3,99,3],[93,3,95,3],[82,4,83,5],[115,6,115,7],[76,16,78,16],[79,16,80,16],[114,7,114,8],[114,10,114,11],[114,13,114,14],[87,6,88,7],[87,8,88,8],[112,5,112,6],[112,8,112,9],[112,11,112,12],[113,8,113,9],[113,13,113,14],[107,6,107,7],[108,4,108,5],[109,6,109,7],[109,9,109,10],[110,4,110,5],[111,4,111,5],[111,7,111,8],[111,10,111,11],[62,38,62,39],[63,30,63,31],[64,34,64,35],[64,37,64,38],[65,33,65,34],[68,33,68,34],[68,38,68,39],[75,18,77,18],[66,6,67,7],[66,8,67,8],[69,6,69,7],[76,6,77,7],[76,8,77,8],[69,30,69,31],[72,33,72,34],[72,38,72,39],[73,30,73,31],[82,6,83,7],[82,8,83,8],[83,33,83,34],[80,33,80,34],[76,4,77,5],[103,32,103,33],[119,8,119,9],[119,13,119,15],[120,8,120,9],[120,13,120,15],[106,30,106,32],[107,33,107,34],[99,33,99,36],[187,3,190,3],[167,17,169,17],[170,17,171,17],[201,4,201,5],[202,4,202,5],[198,33,198,34],[209,8,209,9],[209,13,209,15],[205,7,205,8],[205,10,205,11],[205,13,205,14],[206,6,206,7],[207,9,207,10],[208,8,208,9],[203,11,203,12],[204,8,204,9],[204,13,204,14],[198,6,198,7],[208,13,208,15],[202,7,202,8],[202,10,202,11],[203,5,203,6],[203,8,203,9],[198,36,198,38],[198,42,198,43],[281,8,281,9],[280,5,280,6],[281,29,281,30],[280,26,280,27],[280,13,280,15],[280,34,280,36],[272,16,272,18],[276,16,276,18],[214,18,214,20],[216,13,216,14],[216,16,216,18],[216,20,216,22],[216,24,216,26],[216,28,216,30],[210,9,210,10],[210,14,210,16],[236,43,236,44]]}
[]
[null,"TBDY-2018 KİRİŞ MİNİMUM ETRİYE HESABI  \n(inş.müh. Gürcan BERBEROĞLU tel:0532 366 02 04   www.betoncelik.com )                                                                                                                                                                     "]
[null,null,null,null,null,null,null,null,null,null,null,null,null,null,null,null,null,null,null,null,null,null,null,null,null,null,null,null,"Dikkat sadece sarı hücrelere data girilecek."]
[null,null,null,null,null,null,null,null,null,"sarılma bölgesi",null,null,null,null,null,null,null,"orta bölge",null,null,null,null,null,null,null,null,null,"sarılma bölgesi"]
[null,null,null,null,null,null,null,null,null,{"$f":"ROUNDUP(K7/S9+1,0)","v":14},null,"adet sıra etriye",null,null,null,null,null,{"$f":"ROUNDUP(U7/X10+1,0)","v":14},null,"adet sıra etriye",null,null,null,null,null,null,null,{"$f":"+J5","v":14},null,"adet sıra etriye"]
[]
[null,null,null,null,null,null,null,null,"2 * h =",null,{"$f":"2*AO13","v":1200},null,"mm",null,null,null,null,null,null,null,{"$f":"T22-K7-AD7","v":2600},null,"mm",null,null,null,null,"2 * h =",null,{"$f":"2*AO13","v":1200},null,"mm"]
[]
[null,null,null,null,null,null,null,null,null,null,null,null,null,null,null,{"$f":"+AR29","v":1},{"$f":"+J37","v":10},null,{"$f":"+G47","v":96},null,null,null,null,null,null,null,null,{"$f":"+AR29","v":1},{"$f":"+Q9","v":10},null,{"$f":"+S9","v":96}]
[null,null,null,null,null,null,null,null,50,"mm",null,null,null,null,null,null,null,null,null,null,{"$f":"+AR30","v":1},{"$f":"+J37","v":10},null,{"$f":"+G50","v":200},null,null,null,null,null,null,null,null,null,50]
[null,null,null,null,null,null,null,null,null,null,null,null,null,null,null,null,null,null,null,null,null,null,null,null,null,null,null,null,null,null,null,null,null,null,null,null,null,null,null,null,"mm",null,null,null,null,null,null,null,null,"hf ="]
[null,null,null,null,null,null,null,null,null,null,null,null,null,null,null,null,null,null,null,null,null,null,null,null,null,null,null,null,null,null,null,null,null,null,null,null,null,null,null,null,null,null,null,null,null,null,null,null,null,100,null,"mm"]
[null,null,null,null,null,null,null,null,null,null,null,null,null,null,null,null,null,null,null,null,null,null,null,null,null,null,null,null,null,null,null,null,null,null,null,null,null,null,null,null,600]
[null,null,null,null,null,null,null,null,null,null,null,null,null,null,null,null,null,null,null,null,null,null,null,null,null,null,null,null,null,null,null,null,null,null,null,null,null,null,null,null,null,{"$f":"IF(OR(AO13<3*AX12,AO13<300),\"artır.\",\"\")","v":""}]
[null,null,null,null,null,null,null,null,null,null,null,null,null,null,null,null,null,null,null,null,null,null,null,null,null,null,null,null,null,null,null,null,null,null,null,null,null,null,null,null,null,{"$f":"IF(AO13>3.5*AS18,\"azalt.\",\"\")","v":""}]
[null,null,null,null,null,null,null,null,null,null,null,null,null,null,null,null,null,null,null,null,null,null,null,null,null,null,null,null,null,null,null,null,null,null,null,null,null,null,null,null,"h ="]
[]
[null,null,null,null,null,null,null,null,"sc =",null,{"$f":"+G47","v":96},null,"mm",null,null,"so =",null,{"$f":"+G50","v":200},null,"mm",null,null,null,null,null,null,null,null,null,null,null,null,null,null,null,null,null,null,null,null,null,null,"bw =",null,250,null,"mm"]
[null,null,null,null,null,null,null,null,null,null,null,null,null,null,null,null,null,null,null,null,null,null,null,null,null,null,null,null,null,null,null,null,null,null,null,null,null,null,null,null,null,null,null,null,{"$f":"IF(AS18<250,\"artır.\",\"\")","v":""}]
[]
[]
[null,null,null,null,null,null,null,null,null,null,null,null,null,null,null,null,null,null,"L=",5000,null,"mm",null,null,null,null,null,null,null,null,null,null,null,null,null,null,null,null,null,null,null,null,null,null,null,null,null,null,{"$f":"MAX(6*J37,80)","v":80}]
[]
[null,null,"Beton ve donatı şartları :",null,null,null,null,null,null,null,{"$f":"IF(F25>50,\"C50 den fazla beton kullanıldığında aşağıdaki kolon moment kapasite hesabı kullanılamaz.\",IF(F25<25,\"C25 den az beton kullanılamaz.\",\"\"))","v":""}]
[null,null,"fck = C = ",null,null,25,"N/mm² (Mpa.) (beton silindirik karakteristik mukavemeti)",null,null,null,null,null,null,null,null,null,null,null,null,null,null,null,null,null,null,null,null,null,null,null,null,null,null,null,null,null,null,null,null,null,null,null,null,null,{"$f":"AO13-2*(G35-J37/2-E40/2)","v":552}]
[null,null,"fyk = S = ",null,null,420,null,"N/mm² (Mpa.) (boyuna donatı çelik akma mukavemeti)"]
[null,null,"fywk = S = ",null,null,null,420,null,"N/mm² (Mpa.) (etriye çelik akma mukavemeti)",null,null,null,null,null,null,null,null,null,null,null,null,null,null,null,null,null,null,null,null,null,null,null,null,null,null,null,null,null,null,null,null,null,null,null,null,null,{"$f":"+AS18-2*(G35-E40/2-J37/2)","v":202}]
[null,null,"gmc =",null,1.5,null,null,null,null,null,{"$f":"IF(F26<420,\"S420 den düşük çelik kullanılamaz.\",\"\")","v":""},null,null,null,null,null,null,null,null,null,null,null,null,null,null,null,null,null,null,null,null,null,null,null,null,null,null,null,null,null,null,null,null,null,"L=",{"$f":"2*(AS25+AU27+AW22)","v":1668},null,null,"mm"]
[null,null,"fcd =",null,{"$f":"+F25","v":25}," / ",{"$f":"+E28","v":1.5},null,"=",{"$f":"+E29/G29","v":16.666666666666668},null,"N/mm²",null,null,null,null,null,null,null,null,null,null,null,null,null,null,null,null,null,null,null,null,null,null,null,null,null,"sarılma bölgesinde",null,null,null,null,null,{"$f":"IF(I38=2,1,IF(I38=4,2,IF(I38=6,3,IF(I38=8,4,\"\"))))","v":1},{"$f":"+Q9","v":10},null,{"$f":"+S9","v":96},null,"mm/mm"]
[null,null,"gms =",null,1.1499999999999999,null,null,null,null,null,null,null,null,null,null,null,null,null,null,null,null,null,null,null,null,null,null,null,null,null,null,null,null,null,null,null,null,"orta bölgesde",null,null,null,null,null,{"$f":"+AR29","v":1},{"$f":"+AS29","v":10},null,{"$f":"+X10","v":200},null,"mm/mm"]
[null,null,"fyd =",null,{"$f":"+F26","v":420},null," / ",{"$f":"+E30","v":1.1499999999999999},null,"=",{"$f":"+E31/H31","v":365.21739130434787},null,"N/mm²"]
[null,null,"fywd =",null,null,{"$f":"+G27","v":420},null," / ",{"$f":"+E30","v":1.1499999999999999},null,"=",{"$f":"+F32/I32","v":365.21739130434787},null,"N/mm²"]
[null,null,"fctk = 0.35 * Ö fck =",null,null,null,null,null,0.35,null,"*Ö",{"$f":"+F25","v":25},"=",{"$f":"I33*SQRT(L33)","v":1.75},null,"N/mm²"]
[null,null,"fctd = fctk / gmc =",null,null,null,null,{"$f":"+N33","v":1.75},null," /",{"$f":"+E28","v":1.5},null,"=",{"$f":"+H34/K34","v":1.1666666666666667},null,"N/mm²"]
[null,null,"pas payı  d' =",null,null,null,35,null,"mm  (pas payı : yapı kenar kirişlerinde 25mm ; yapı içindeki kirişlerde 20mm)",null,null,null,null,null,null,null,null,null,null,null,null,null,null,null,null,null,null,null,null,null,null,null,{"$f":"IF(G35<=20+J37/2+E40/2,\"artır.\",\"\")","v":""}]
[null,null,"d = h - d' =",null,null,null,{"$f":"+AO13","v":600},null,"-",{"$f":"+G35","v":35},null,"=",{"$f":"+G36-J36","v":565},null,"mm"]
[null,null,"kullanılacak etriye çapı :",null,null,null,null,null,null,10,null,"mm"]
[null,null,"etriye kol sayısı  n=",null,null,null,null,null,{"$f":"IF(AS18<400,2,IF(AND(AS18>=400,AS18<800),4,IF(AND(AS18>=800,AS18<1200),6,IF(AND(AS18>=1200,AS18<1400),8,10))))","v":2},"adet"]
[null,null,"Asw = n * p * Ø² / 4 =",null,null,null,null,null,null,{"$f":"+I38","v":2},"* p * ",null,{"$f":"+J37","v":10},null,"²/",4,"=",{"$f":"J39*PI()*M39^2/P39","v":157.07963267948966},null,null,"mm²"]
[null,null,"Øl =",null,12,null,"mm",null,"(en küçük boyuna donatı çapı)"]
[null,null,"sc min = somin = Asw * fywd / ( 0,3 * fctd * bw )"]
[null,null,"sc min = somin =",null,null,null,null,{"$f":"+R39","v":157.07963267948966},null,null,"*",{"$f":"+L32","v":365.21739130434787},null," /(",0.3,null,"*",{"$f":"+N34","v":1.1666666666666667},null,"*",{"$f":"+AS18","v":250},null,")=",{"$f":"H42*L42/(O42*R42*U42)","v":655.63672770569599},null,null,"mm"]
[null,null,"sarılma bölgesi etriye aralığı hesabı"]
[null,null,"sc max = d / 4 =",null,null,null,null,{"$f":"+M36","v":565},null," /",4,"=",{"$f":"+H44/K44","v":141.25},null,"mm"]
[null,null,"sc max = 8 * Øl =",null,null,null,null,8,"*",{"$f":"+E40","v":12},null,"=",{"$f":"+H45*J45","v":96},null,"mm"]
[null,null,"sc max =",null,null,150,null,"mm"]
[null,null,"seçilen sc =",null,null,null,{"$f":"ROUNDDOWN(MIN(F46,M45,M44,X42),0)","v":96},null,null,"mm"]
[null,null,"orta bölge etriye aralığı hesabı"]
[null,null,"so = d / 2 =",null,null,null,{"$f":"+M36","v":565},null," /",2,"=",{"$f":"+G49/J49","v":282.5},null,"mm"]
[null,null,"seçilen so =",null,null,null,{"$f":"ROUNDDOWN(MIN(L49,X42,200),0)","v":200},null,null,"mm"]
[]
[]
[null,"TBDY-2018 DİKDÖRTGEN KOLON MİNİMUM ETRİYE HESABI  \n(inş.müh. Gürcan BERBEROĞLU tel:0532 366 02 04   www.betoncelik.com )                                                                                                                                                                     "]
[null,null,null,null,null,null,null,null,null,null,null,null,null,null,null,null,null,null,null,null,null,null,null,null,null,null,null,null,"Dikkat sadece sarı hücrelere data girilecek."]
[null,null,null,null,null,null,null,null,null,null,null,null,null,null,null,null,null,null,null,null,null,null,null,null,null,null,null,null,"sarılma bölgesi    Lc   hesabı"]
[null,null,null,null,null,null,null,null,null,null,null,null,null,null,null,null,null,null,null,null,null,null,null,null,null,null,null,null,"Lc = 1,5 * bmax =",null,null,null,null,null,1.5,null,"*",{"$f":"MAX(Y83,AD90)","v":450},null,"=",{"$f":"+AI56*AL56","v":675},null,"mm"]
[null,null,null,null,null,null,null,null,null,null,null,null,null,null,null,null,null,"sj =< 100 mm",null,null,null,null,null,null,null,null,null,null,"Lc = Ln / 6 =",null,null,null,{"$f":"+U76*1000","v":3500},null,null," /",6,"=",{"$f":"+AG57/AK57","v":583.33333333333337},null,"mm"]
[null,null,null,null,null,null,null,null,null,null,null,null,null,null,null,null,null,null,null,null,null,null,null,null,null,null,null,null,"Lc =",null,500,null,"mm"]
[null,null,null,null,null,null,null,null,null,null,null,null,null,null,null,null,null,null,null,null,null,null,null,null,null,null,null,null,"kullanılacak Lc =",null,null,null,null,{"$f":"MAX(AE58,AM57,AO56)","v":675},null,"mm"]
[]
[null,null,null,null,null,null,null,null,null,null,null,null,null,null,null,null,null,null,null,null,null,null,null,null,null,null,null,null,"sarılma bölgesi    sc   hesabı"]
[null,null,null,null,null,null,null,null,null,null,null,null,null,null,null,null,null,null,null,null,null,null,null,null,null,null,null,null,"sc >=",null,50,null,"mm"]
[null,null,null,null,null,null,null,null,null,null,null,null,null,null,null,null,null,null,null,null,null,null,null,null,null,null,null,null,"sc =< bmin / 3 =",null,null,null,null,{"$f":"MIN(Y83,AD90)","v":350},null," /",3,"=",{"$f":"+AH63/AK63","v":116.66666666666667},null,"mm"]
[null,null,null,null,null,null,null,null,null,null,null,null,null,null,null,null,null,null,null,null,null,null,null,null,null,null,null,null,"sc =<",null,150,null,"mm"]
[null,null,null,null,null,null,null,null,null,null,null,null,null,null,null,null,null,null,"m",null,null,null,null,null,null,null,null,null,"sc =< 6 * Øl =",null,null,null,6,"*",{"$f":"+Y78","v":16},null,"=",{"$f":"+AG65*AI65","v":96},null,"mm"]
[null,null,null,null,null,null,null,null,null,null,null,null,null,null,null,null,null,null,{"$f":"+AH59/1000","v":0.67500000000000004},null,null,null,null,null,null,null,null,null,"kullanılacak  sc =",null,null,null,null,{"$f":"MAX(MIN(AL65,AE64,AM63),AE62)","v":96},null,"mm"]
[null,null,null,null,"sc =",null,{"$f":"+G70","v":116},null,"mm"]
[null,null,null,null,null,null,null,null,null,null,null,null,null,null,null,null,null,null,null,null,null,null,null,null,null,null,null,null,"orta bölgesi    so   hesabı"]
[null,null,null,null,null,null,null,null,null,null,null,null,null,null,null,null,null,null,null,null,null,null,null,null,null,null,null,null,"so =< bmin / 2 =",null,null,null,null,{"$f":"+AH63","v":350},null," /",2,"=",{"$f":"+AH69/AK69","v":175},null,"mm"]
[null,null,null,null,{"$f":"+J117","v":10},null,{"$f":"IF(AH100=\"yüksek\",H137,AF136)","v":116},null,null,null,null,null,null,null,null,null,null,null,null,null,null,null,null,null,null,null,null,null,"so =<",null,200,null,"mm"]
[]
[null,null,null,null,null,null,null,null,null,null,null,null,null,null,null,null,null,null,null,null,null,null,null,null,null,null,null,null,"orta bindirme sarılma bölgesi    sc   hesabı"]
[null,null,null,null,"so =",null,{"$f":"+G70","v":116},null,"mm",null,null,null,null,null,null,null,null,null,null,null,null,null,null,null,null,null,null,null,"sc =< bmin / 3 =",null,null,null,null,{"$f":"+AH69","v":350},null," /",3,"=",{"$f":"+AH73/AK73","v":116.66666666666667},null,"mm"]
[null,null,null,null,null,null,null,null,null,null,null,null,null,null,null,null,null,null,null,null,null,null,null,null,null,null,null,null,"sc =<",null,150,null,"mm"]
[null,null,null,null,{"$f":"+E70","v":10},null,{"$f":"IF(AH100=\"yüksek\",H141,AF140)","v":175},null,null,null,null,null,null,null,null,null,null,null,"m",null,"m",null,null,null,null,null,null,null,"Lb = max( 0,12 * fyd * Ø / fctd ; 20 * Ø ) =",null,null,null,null,null,null,null,null,null,null,null,{"$f":"MAX(0.12*K112*Y78/N115,20*Y78)","v":601.04347826086962},null,"mm"]
[null,null,null,null,null,null,null,null,null,null,null,null,null,null,null,null,"m",null,{"$f":"+U76-S66-S89","v":2.1500000000000004},null,3.5]
[null,null,null,null,"sc =",null,{"$f":"+G80","v":116.66666666666667},null,"mm",null,null,null,null,null,null,null,{"$f":"+AO75/1000","v":0.60104347826086957},null,null,null,null,null,null,null,null,null,null,"ai",null,"ai",null,"ai"]
[null,null,null,null,null,null,null,null,null,null,null,null,null,null,null,null,null,null,null,null,null,null,null,null,16]
[null,null,null,null,null,null,null,null,null,null,null,null,null,null,null,null,null,null,null,null,"Ln ="]
[null,null,null,null,{"$f":"+E75","v":10},null,{"$f":"MIN(AE74,AM73)","v":116.66666666666667},null,null,null,null,null,null,null,null,null,"Lb =",null,null,null,null,null,null,null,null,null,null,null,null,null,null,null,null,null,null,null,null,null,null,null,null,null,{"$f":"MAX(6*J117,80)","v":80}]
[null,null,null,null,null,null,null,null,null,null,null,null,null,null,null,null,null,null,null,null,null,null,null,null,"mm",null,null,null,null,null,null,null,null,"ai"]
[]
[null,null,null,null,"so =",null,{"$f":"+G75","v":175},null,"mm",null,null,null,null,null,null,null,null,null,null,null,null,null,null,null,450]
[null,null,null,null,null,null,null,null,null,null,null,null,null,null,null,null,null,null,null,null,null,null,null,null,null,{"$f":"IF(Y83<300,\"artır.\",\"\")","v":""},null,null,null,null,null,null,null,"ai",null,null,null,{"$f":"+H123","v":406}]
[]
[]
[null,null,null,null,null,null,null,null,null,null,null,null,null,null,null,null,null,null,null,null,null,null,null,null,null,null,null,null,null,null,null,null,null,"ai",null,null,null,null,null,{"$f":"E123","v":306}]
[null,null,null,null,"sc =",null,{"$f":"+G67","v":116},null,"mm",null,null,null,null,null,null,null,null,null,"m"]
[null,null,null,null,null,null,null,null,null,null,null,null,null,null,null,null,null,null,{"$f":"+S66","v":0.67500000000000004},null,null,null,null,null,null,null,null,null,null,null,null,null,null,null,null,null,null,"L=",{"$f":"2*(AL84+AN87+AQ80)","v":1584},null,null,"mm"]
[null,null,null,null,null,null,null,null,null,null,null,null,null,null,null,null,null,null,null,null,null,null,null,null,null,null,null,null,null,350,null,"mm"]
[null,null,null,null,null,null,null,null,null,null,null,null,null,null,null,null,null,null,null,null,null,null,null,null,null,null,null,null,null,{"$f":"IF(AD90<300,\"artır.\",\"\")","v":""}]
[]
[null,null,null,"m",null,null,null,null,null,null,null,null,null,null,null,null,null,null,null,null,null,null,"x yönü çiroz",null,null,null,{"$f":"+N118-2","v":1},"adet"]
[null,null,null,{"$f":"MIN(Y83,AD90)/1000","v":0.35},null,null,null,null,null,null,null,null,null,null,null,null,null,null,null,null,null,null,null,null,null,null,null,null,null,"y yönü çiroz",null,null,null,{"$f":"+N119-2","v":1},"adet"]
[]
[]
[null,null,null,"bmin ="]
[]
[]
[null,null,null,null,null,null,null,null,null,null,null,null,null,null,null,null,null,null,null,null,null,null,null,null,null,null,null,null,"süneklik düzeyi",null,null,null,null,"yüksek",null,null,null,"kolon"]
[]
[null,null,null,null,null,null,null,null,null,null,null,null,null,null,null,null,null,null,null,null,null,null,null,null,null,null,null,null,"ai max = 25 * Øet =",null,null,null,null,null,25,"*",{"$f":"+J117","v":10},null,"=",{"$f":"+AI102*AK102","v":250},null,"mm"]
[null,null,null,null,null,null,null,null,null,null,null,null,null,null,null,null,null,null,null,null,null,null,null,null,null,null,null,null,"ai max =",null,null,300,null,"mm"]
[null,null,null,null,null,null,null,null,null,null,null,null,null,null,null,null,null,null,null,null,null,null,null,null,null,null,null,null,"seçilen  ai =",null,null,null,{"$f":"MIN(AN102,AF103)","v":250},null,"mm"]
[null,null,"Beton ve donatı şartları :",null,null,null,null,null,null,null,{"$f":"IF(F106>50,\"C50 den fazla beton kullanıldığında aşağıdaki kolon moment kapasite hesabı kullanılamaz.\",IF(F106<25,\"C25 den az beton kullanılamaz.\",\"\"))","v":""}]
[null,null,"fck = C = ",null,null,25,"N/mm² (Mpa.) (beton silindirik karakteristik mukavemeti)"]
[null,null,"fyk = S = ",null,null,420,null,"N/mm² (Mpa.) (boyuna donatı çelik akma mukavemeti)",null,null,null,null,null,null,null,null,null,null,null,null,null,null,null,null,null,null,null,null,"Nd =",null,1500,null,null,"KN",null,"(kolona etkiyen eksenel kuvvet)"]
[null,null,"fywk = S = ",null,null,null,420,null,"N/mm² (Mpa.) (etriye çelik akma mukavemeti)",null,null,null,null,null,null,null,null,null,null,null,null,null,null,null,null,null,null,null,"0,20 * Ac * fck =",null,null,null,null,0.2,null,"*",{"$f":"+K122","v":157500},null,null,"*",{"$f":"+F106","v":25}," /",1000,null,"=",{"$f":"+AH108*AK108*AO108/AQ108","v":787.5},null,null,"KN"]
[null,null,"gmc =",null,1.5,null,null,null,null,null,{"$f":"IF(F107<420,\"S420 den düşük çelik kullanılamaz.\",\"\")","v":""},null,null,null,null,null,null,null,null,null,null,null,null,null,null,null,null,null,{"$f":"+AE107","v":1500},null,null,"KN",{"$f":"IF(AC109<AH109,\"<\",\">\")","v":">"},{"$f":"+AT108","v":787.5},null,null,"KN"]
[null,null,"fcd =",null,{"$f":"+F106","v":25}," / ",{"$f":"+E109","v":1.5},null,"=",{"$f":"+E110/G110","v":16.666666666666668},null,"N/mm²"]
[null,null,"gms =",null,1.1499999999999999]
[null,null,"fyd =",null,{"$f":"+F107","v":420},null," / ",{"$f":"+E111","v":1.1499999999999999},null,"=",{"$f":"+E112/H112","v":365.21739130434787},null,"N/mm²"]
[null,null,"fywd =",null,null,{"$f":"+G108","v":420},null," / ",{"$f":"+E111","v":1.1499999999999999},null,"=",{"$f":"+F113/I113","v":365.21739130434787},null,"N/mm²"]
[null,null,"fctk = 0.35 * Ö fck =",null,null,null,null,null,0.35,null,"*Ö",{"$f":"+F106","v":25},"=",{"$f":"I114*SQRT(L114)","v":1.75},null,"N/mm²"]
[null,null,"fctd = fctk / gmc =",null,null,null,null,{"$f":"+N114","v":1.75},null," /",{"$f":"+E109","v":1.5},null,"=",{"$f":"+H115/K115","v":1.1666666666666667},null,"N/mm²"]
[null,null,"pas payı  d' =",null,null,null,35,null,"mm  (pas payı : yapı kenar kolonlarda 25mm ; yapı içindeki kolonlarda 20mm)",null,null,null,null,null,null,null,null,null,null,null,null,null,null,null,null,null,null,null,null,null,null,null,{"$f":"IF(G116<=20+J117/2+Y78/2,\"artır.\",\"\")","v":""}]
[null,null,"kullanılacak etriye çapı :",null,null,null,null,null,null,10,null,"mm"]
[null,null,"x yönü çiroz dahil etriye kol sayısı  n=",null,null,null,null,null,null,null,null,null,null,{"$f":"1+ROUNDUP((AD90-2*(G116-Y78/2-J117/2))/AG104,0)","v":3},"adet"]
[null,null,"y yönü çiroz dahil etriye kol sayısı  n=",null,null,null,null,null,null,null,null,null,null,{"$f":"1+ROUNDUP((Y83-2*(G116-Y78/2-J117/2))/AG104,0)","v":3},"adet"]
[null,null,"Aswx =",null,null,{"$f":"+N118","v":3},"* p *",null,{"$f":"+J117","v":10},null,"²/",4,"=",{"$f":"F120*PI()*I120^2/L120","v":235.61944901923448},null,null,"mm²"]
[null,null,"Aswy =",null,null,{"$f":"+N119","v":3},"* p *",null,{"$f":"+I120","v":10},null,"²/",4,"=",{"$f":"F121*PI()*I121^2/L121","v":235.61944901923448},null,null,"mm²"]
[null,null,"Ac =",null,{"$f":"+AD90","v":350},null,"*",{"$f":"+Y83","v":450},null,"=",{"$f":"+E122*H122","v":157500},null,null,"mm²",null,"(kolon enkesit alanı)"]
[null,null,"Ack =",null,{"$f":"AD90-2*(G116-Y78/2-J117/2)","v":306},null,"*",{"$f":"Y83-2*(G116-Y78/2-J117/2)","v":406},null,"=",{"$f":"+E123*H123","v":124236},null,null,"mm²"]
[null,null,"scx min = sox min = Aswx * fywd / ( 0,3 * fctd * bw ) =",null,null,null,null,null,null,null,null,null,null,null,null,null,null,null,{"$f":"+N120","v":235.61944901923448},null,null,"*",{"$f":"+L113","v":365.21739130434787},null," /(",0.3,null,"*",{"$f":"+N115","v":1.1666666666666667},null,"*",{"$f":"+AD90","v":350},null,")=",{"$f":"+S124*W124/(Z124*AC124*AF124)","v":702.46792254181707},null,null,"mm"]
[null,null,"scy min = soy min = Aswy * fywd / ( 0,3 * fctd * bw ) =",null,null,null,null,null,null,null,null,null,null,null,null,null,null,null,{"$f":"+N121","v":235.61944901923448},null,null,"*",{"$f":"+W124","v":365.21739130434787},null," /(",0.3,null,"*",{"$f":"+AC124","v":1.1666666666666667},null,"*",{"$f":"+Y83","v":450},null,")=",{"$f":"+S125*W125/(Z125*AC125*AF125)","v":546.36393975474653},null,null,"mm"]
[null,null,"Süneklik düzeyi yüksek kolon ise ve  ( Nd > 0,20*Ac * fck    veya    Nd < 0,20*Ac * fck) olması durumunda"]
[null,null,{"$f":"IF(AC109>AH109,\"sc min = Ash * fywk / ( 0,30 * bk * ( Ac / Ack - 1 ) * fck ) =\",\"sc min = Ash * fywk / ( 0,20 * bk * ( Ac / Ack - 1 ) * fck ) =\")","v":"sc min = Ash * fywk / ( 0,30 * bk * ( Ac / Ack - 1 ) * fck ) ="},null,null,null,null,null,null,null,null,null,null,null,null,null,null,null,null,{"$f":"+N120","v":235.61944901923448},null,null,"*",{"$f":"+G108","v":420},null," /(",{"$f":"IF(AC109>AH109,0.3,0.2)","v":0.3},null,"*",{"$f":"+E123","v":306},null,"*(",{"$f":"+K122","v":157500},null,null," /",{"$f":"+K123","v":124236},null,null,"-",1,")*",{"$f":"+F106","v":25},")=",{"$f":"+T127*X127/(AA127*AD127*(AG127/AK127-AO127)*AQ127)","v":161.04629007038582},null,null,"mm",null,"(x yönü)"]
[null,null,{"$f":"IF(AC105>AH105,\"sc min = Ash * fywk / ( 0,30 * bk * ( Ac / Ack - 1 ) * fck ) =\",\"sc min = Ash * fywk / ( 0,20 * bk * ( Ac / Ack - 1 ) * fck ) =\")","v":"sc min = Ash * fywk / ( 0,20 * bk * ( Ac / Ack - 1 ) * fck ) ="},null,null,null,null,null,null,null,null,null,null,null,null,null,null,null,null,{"$f":"+N121","v":235.61944901923448},null,null,"*",{"$f":"+X127","v":420},null," /(",{"$f":"IF(AC109>AH109,0.3,0.2)","v":0.3},null,"*",{"$f":"+H123","v":406},null,"*(",{"$f":"+K122","v":157500},null,null," /",{"$f":"+K123","v":124236},null,null,"-",1,")*",{"$f":"+AQ127","v":25},")=",{"$f":"+T128*X128/(AA128*AD128*(AG128/AK128-AO128)*AQ128)","v":121.37971616142381},null,null,"mm",null,"(y yönü)"]
[null,null,{"$f":"IF(AC109>AH109,\"sc min = Ash * fywk / ( 0,075 * bk * fck ) =\",\"sc min = Ash * fywk / ( 0,050 * bk * fck ) =\")","v":"sc min = Ash * fywk / ( 0,075 * bk * fck ) ="},null,null,null,null,null,null,null,null,null,null,null,null,{"$f":"+T127","v":235.61944901923448},null,null,"*",{"$f":"+X127","v":420},null," /(",{"$f":"IF(AC109>AH109,0.075,0.05)","v":7.4999999999999997E-2},null,null,"*",{"$f":"+AD127","v":306},null,"*",{"$f":"+F106","v":25},")=",{"$f":"+P129*T129/(W129*AA129*AD129)","v":172.47959666767491},null,null,"mm",null,"(kesme kuv. x yönü)"]
[null,null,{"$f":"IF(AC109>AH109,\"sc min = Ash * fywk / ( 0,075 * bk * fck ) =\",\"sc min = Ash * fywk / ( 0,050 * bk * fck ) =\")","v":"sc min = Ash * fywk / ( 0,075 * bk * fck ) ="},null,null,null,null,null,null,null,null,null,null,null,null,{"$f":"+T128","v":235.61944901923448},null,null,"*",{"$f":"+X128","v":420},null," /(",{"$f":"IF(AC109>AH109,0.075,0.05)","v":7.4999999999999997E-2},null,null,"*",{"$f":"+AD128","v":406},null,"*",{"$f":"+AD129","v":25},")=",{"$f":"+P130*T130/(W130*AA130*AD130)","v":129.99693738992246},null,null,"mm",null,"(kesme kuv. y yönü)"]
[null,null,"Süneklik düzeyi yüksek kolon ise",null,null,null,null,null,null,null,null,null,null,null,null,null,null,null,null,null,null,null,null,null,null,null,"Süneklik düzeyi normal kolon ise"]
[null,null,"sarılma bölgesi etriye aralığı hesabı",null,null,null,null,null,null,null,null,null,null,null,null,null,null,null,null,null,null,null,null,null,null,null,"sarılma bölgesi etriye aralığı hesabı"]
[null,null,"sc min =",null,null,50,null,"mm",null,null,null,null,null,null,null,null,null,null,null,null,null,null,null,null,null,null,"sc max = bmin / 3 =",null,null,null,null,null,{"$f":"+I136","v":350},null," /",3,"=",{"$f":"+AG133/AJ133","v":116.66666666666667},null,"mm"]
[null,null,"sc max = 6 * Øl =",null,null,null,null,8,"*",{"$f":"+Y78","v":16},null,"=",{"$f":"+H134*J134","v":128},null,"mm",null,null,null,null,null,null,null,null,null,null,null,"sc max = 8 * Øl =",null,null,null,null,8,"*",{"$f":"+Y78","v":16},null,"=",{"$f":"+AF134*AH134","v":128},null,"mm"]
[null,null,"sc max =",null,null,150,null,"mm",null,null,null,null,null,null,null,null,null,null,null,null,null,null,null,null,null,null,"sc max =",null,null,150,null,"mm"]
[null,null,"sc max = bmin / 3 =",null,null,null,null,null,{"$f":"MIN(Y83,AD90)","v":350},null," /",3,"=",{"$f":"+I136/L136","v":116.66666666666667},null,"mm",null,null,null,null,null,null,null,null,null,null,"kullanılacak  sc =",null,null,null,null,{"$f":"ROUNDDOWN(MIN(AI124,AI125,AL133,AK134,AD135),0)","v":116},null,"mm"]
[null,null,"kullanılacak  sc =",null,null,null,null,{"$f":"MAX(ROUNDDOWN(MIN(N136,AS127,AF129,AF130,AI124,AI125,AS128,M134,F135),0),F133)","v":116},null,"mm",null,null,null,null,null,null,null,null,null,null,null,null,null,null,null,null,"orta bölge etriye aralığı hesabı"]
[null,null,"orta bölge etriye aralığı hesabı",null,null,null,null,null,null,null,null,null,null,null,null,null,null,null,null,null,null,null,null,null,null,null,"so max =",null,null,200,null,"mm"]
[null,null,"so max =",null,null,200,null,"mm",null,null,null,null,null,null,null,null,null,null,null,null,null,null,null,null,null,null,"so max = bmin / 2 =",null,null,null,null,null,{"$f":"+I140","v":350},null," /",2,"=",{"$f":"+AG139/AJ139","v":175},null,"mm"]
[null,null,"so max = bmin / 2 =",null,null,null,null,null,{"$f":"+I136","v":350},null," /",2,"=",{"$f":"+I140/L140","v":175},null,"mm",null,null,null,null,null,null,null,null,null,null,"kullanılacak  so =",null,null,null,null,{"$f":"ROUNDDOWN(MIN(AD138,AL139,AI124,AI125),0)","v":175},null,"mm"]
[null,null,"kullanılacak  so =",null,null,null,null,{"$f":"ROUNDDOWN(MIN(F139,N140,AI124,AI125),0)","v":175},null,"mm"]
[]
[]
[null,"TBDY-2018 DAİRESEL KOLON MİNİMUM SPİRAL HESABI  \n(inş.müh. Gürcan BERBEROĞLU tel:0532 366 02 04   www.betoncelik.com )                                                                                                                                                                     "]
[null,null,null,null,null,null,null,null,null,null,null,null,null,null,null,null,null,null,null,null,null,null,null,null,null,null,null,null,"Dikkat sadece sarı hücrelere data girilecek."]
[]
[]
[null,null,null,null,null,null,null,null,null,null,null,null,null,null,null,null,"sj =< 100 mm"]
[]
[]
[]
[]
[]
[]
[null,null,null,null,null,null,null,null,null,null,null,null,null,null,null,null,null,null,null,null,null,null,null,null,null,null,null,null,null,null,null,null,null,null,null,null,null,null,null,null,"üstte ve altta bir tur daire dönülecek mi ?",null,null,null,null,null,null,null,"evet"]
[null,null,null,null,null,null,null,null,null,null,null,null,null,null,null,null,null,null,null,null,null,null,null,null,null,null,null,null,null,null,16]
[null,null,null,null,null,null,null,null,null,null,null,null,null,null,null,null,null,null,null,null,null,null,null,null,null,null,null,null,null,null,null,null,null,null,null,null,null,null,null,null,null,"kat yükseklğince spiral donatı boyu"]
[null,null,null,null,null,null,null,null,null,null,null,null,null,null,null,null,null,null,null,null,null,null,null,null,null,null,null,null,{"$f":"+G207-AE156/2-J1931","v":27},null,"mm",null,null,null,null,null,null,null,null,null,null,null,null,null,null,"L=",{"$f":"(U167*100/(AW161)*SQRT((2*PI()*(AD161/10)/2)^2+(AW161)^2))+IF(AW155=\"evet\",2*(2*PI()*(AD161/10/2)),0)","v":7855.6987274695766},null,null,"cm"]
[null,null,null,null,null,null,null,null,null,null,null,null,null,null,null,null,null,null,null,null,null,null,null,null,null,null,null,"mm",null,"mm"]
[null,null,null,null,null,null,null,null,null,null,null,null,null,null,null,null,null,null,null,null,null,null,null,null,null,null,{"$f":"IF(AB161<350,\"artır.\",\"\")","v":""}]
[null,null,null,null,null,null,null,null,null,null,null,null,null,null,null,null,null,null,null,null,null,null,null,null,null,null,null,600,null,{"$f":"+AB161-AC158-AC166","v":546},null,null,null,null,null,null,null,null,null,null,null,null,null,null,null,null,null,null,{"$f":"+G162/10","v":8},null,"cm"]
[null,null,null,null,"sc =",null,{"$f":"IF(AG169=\"yüksek\",H222,AF222)","v":80},null,"mm"]
[]
[]
[null,null,null,null,{"$f":"+J208","v":10},null,{"$f":"IF(AG169=\"yüksek\",H222,AF222)","v":80}]
[null,null,null,null,null,null,null,null,null,null,null,null,null,null,null,null,null,null,null,null,"m",null,null,null,null,null,null,null,{"$f":"+AC158","v":27},null,"mm"]
[null,null,null,null,null,null,null,null,null,null,null,null,null,null,null,null,null,"m",null,null,3.5]
[null,null,null,null,null,null,null,null,null,null,null,null,null,null,null,null,null,{"$f":"+AP176/1000","v":0.60104347826086957}]
[null,null,null,null,null,null,null,null,null,null,null,null,null,null,null,null,null,null,null,null,null,null,null,null,null,null,null,"süneklik düzeyi",null,null,null,null,"yüksek",null,null,null,"kolon"]
[null,null,null,null,null,null,null,null,null,null,null,null,null,null,null,null,null,null,null,null,"Ln ="]
[null,null,null,null,null,null,null,null,null,null,null,null,null,null,null,null,null,"Lb ="]
[]
[]
[]
[]
[null,null,null,null,null,null,null,null,null,null,null,null,null,null,null,null,null,null,null,null,null,null,null,null,null,null,null,null,null,"Lb = max( 0,12 * fyd * Ø / fctd ; 20 * Ø ) =",null,null,null,null,null,null,null,null,null,null,null,{"$f":"MAX(0.12*K203*AE156/N206,20*AE156)","v":601.04347826086962},null,"mm"]
[]
[]
[]
[]
[]
[]
[]
[null,null,null,"m"]
[null,null,null,{"$f":"+AB161/1000","v":0.6}]
[]
[]
[null,null,null,"bmin ="]
[]
[]
[]
[]
[]
[]
[]
[null,null,"Beton ve donatı şartları :",null,null,null,null,null,null,null,{"$f":"IF(F197>50,\"C50 den fazla beton kullanıldığında aşağıdaki kolon moment kapasite hesabı kullanılamaz.\",IF(F197<25,\"C25 den az beton kullanılamaz.\",\"\"))","v":""}]
[null,null,"fck = C = ",null,null,25,"N/mm² (Mpa.) (beton silindirik karakteristik mukavemeti)"]
[null,null,"fyk = S = ",null,null,420,null,"N/mm² (Mpa.) (boyuna donatı çelik akma mukavemeti)",null,null,null,null,null,null,null,null,null,null,null,null,null,null,null,null,null,null,null,null,"Nd =",null,1500,null,null,"KN",null,"(kolona etkiyen eksenel kuvvet)"]
[null,null,"fywk = S = ",null,null,null,420,null,"N/mm² (Mpa.) (etriye çelik akma mukavemeti)",null,null,null,null,null,null,null,null,null,null,null,null,null,null,null,null,null,null,null,"0,20 * Ac * fck =",null,null,null,null,0.2,null,"*",{"$f":"+N210","v":282743.3388230814},null,null,"*",{"$f":"+F197","v":25}," /",1000,null,"=",{"$f":"+AH199*AK199*AO199/AQ199","v":1413.7166941154071},null,null,"KN"]
[null,null,"gmc =",null,1.5,null,null,null,null,null,{"$f":"IF(F198<420,\"S420 den düşük çelik kullanılamaz.\",\"\")","v":""},null,null,null,null,null,null,null,null,null,null,null,null,null,null,null,null,null,{"$f":"+AE198","v":1500},null,null,"KN",{"$f":"IF(AC200<AH200,\"<\",\">\")","v":">"},{"$f":"+AT199","v":1413.7166941154071},null,null,"KN"]
[null,null,"fcd =",null,{"$f":"+F197","v":25}," / ",{"$f":"+E200","v":1.5},null,"=",{"$f":"+E201/G201","v":16.666666666666668},null,"N/mm²"]
[null,null,"gms =",null,1.1499999999999999]
[null,null,"fyd =",null,{"$f":"+F198","v":420},null," / ",{"$f":"+E202","v":1.1499999999999999},null,"=",{"$f":"+E203/H203","v":365.21739130434787},null,"N/mm²"]
[null,null,"fywd =",null,null,{"$f":"+G199","v":420},null," / ",{"$f":"+E202","v":1.1499999999999999},null,"=",{"$f":"+F204/I204","v":365.21739130434787},null,"N/mm²"]
[null,null,"fctk = 0.35 * Ö fck =",null,null,null,null,null,0.35,null,"*Ö",{"$f":"+F197","v":25},"=",{"$f":"I205*SQRT(L205)","v":1.75},null,"N/mm²"]
[null,null,"fctd = fctk / gmc =",null,null,null,null,{"$f":"+N205","v":1.75},null," /",{"$f":"+E200","v":1.5},null,"=",{"$f":"+H206/K206","v":1.1666666666666667},null,"N/mm²"]
[null,null,"pas payı  d' =",null,null,null,35,null,"mm  (pas payı : yapı kenar kolonlarda 25mm ; yapı içindeki kolonlarda 20mm)",null,null,null,null,null,null,null,null,null,null,null,null,null,null,null,null,null,null,null,null,null,null,null,{"$f":"IF(G207<=20+J208/2+AE156/2,\"artır.\",\"\")","v":""}]
[null,null,"kullanılacak etriye çapı :",null,null,null,null,null,null,10,null,"mm"]
[null,null,"Asw =",null,null,2,"* p *",null,{"$f":"+J208","v":10},null,"²/",4,"=",{"$f":"F209*PI()*I209^2/L209","v":157.07963267948966},null,null,"mm²"]
[null,null,"Ac = p * D² / 4 = p *",null,null,null,null,null,{"$f":"+AB161","v":600},null,"²/",4,"=",{"$f":"PI()*I210^2/L210","v":282743.3388230814},null,null,"mm²",null,"(kolon enkesit alanı)"]
[null,null,"Ack = p * Do² / 4 = p *",null,null,null,null,null,null,{"$f":"+AD161","v":546},null,"²/",4,"=",{"$f":"PI()*J211^2/M211","v":234139.75887939369},null,null,"mm²"]
[null,null,"sc min = so min = Asw * fywd / ( 0,3 * fctd * bw ) =",null,null,null,null,null,null,null,null,null,null,null,null,null,null,{"$f":"+N209","v":157.07963267948966},null,null,"*",{"$f":"+L204","v":365.21739130434787},null," /(",0.3,null,"*",{"$f":"+N206","v":1.1666666666666667},null,"*",{"$f":"+AB161","v":600},null,")=",{"$f":"+R212*V212/(Y212*AB212*AE212)","v":273.18196987737332},null,null,"mm"]
[null,null,"Süneklik düzeyi yüksek kolon ise ve  ( Nd > 0,20*Ac * fck    veya    Nd < 0,20*Ac * fck) olması durumunda"]
[null,null,"rs =",null,{"$f":"IF(AC200>AH200,\"0,45 * ( ( Ac / Ack ) - 1 ) * fck / fywk =\",\"0,30 * ( ( Ac / Ack ) - 1 ) * fck / fywk =\")","v":"0,45 * ( ( Ac / Ack ) - 1 ) * fck / fywk ="},null,null,null,null,null,null,null,null,null,null,null,{"$f":"IF(AC200>AH200,0.45,0.3)","v":0.45},null," * ( (",null,{"$f":"+N210","v":282743.3388230814},null,null," /",{"$f":"+O211","v":234139.75887939369},null,null,")-",1,")*",{"$f":"+F197","v":25}," /",{"$f":"+G199","v":420},null,"=",{"$f":"+Q214*((U214/Y214)-AC214)*AE214/AG214","v":5.5602756740904327E-3}]
[null,null,"rs =",null,{"$f":"IF(AC200>AH200,\"0,12 * fck / fywk =\",\"0,08 * fck / fywk =\")","v":"0,12 * fck / fywk ="},null,null,null,null,null,{"$f":"IF(AC200>AH200,0.12,0.12*2/3)","v":0.12},null,"*",{"$f":"+F197","v":25}," /",{"$f":"+G199","v":420},null,"=",{"$f":"+K215*N215/P215","v":7.1428571428571426E-3}]
[null,null,"Asp = rs * Ack = p * D * Asw / sc"]
[null,null,"sc = p * D * Asw / ( rs * Ack ) =   p * ",null,null,null,null,null,null,null,null,null,null,{"$f":"+AB161","v":600},null,"*",{"$f":"+N209","v":157.07963267948966},null,null," /(",{"$f":"MAX(S215,AJ214)","v":7.1428571428571426E-3},null,null,"*",{"$f":"+O211","v":234139.75887939369},null,null,")=",{"$f":"PI()*N217*Q217/(U217*Y217)","v":177.04100611945861},null,null,"mm"]
[null,null,"Süneklik düzeyi yüksek kolon ise",null,null,null,null,null,null,null,null,null,null,null,null,null,null,null,null,null,null,null,null,null,null,null,"Süneklik düzeyi normal kolon ise"]
[null,null,"sarılma ve orta bölgesi spiral aralığı hesabı",null,null,null,null,null,null,null,null,null,null,null,null,null,null,null,null,null,null,null,null,null,null,null,"sarılma ve orta bölgesi spiral aralığı hesabı"]
[null,null,"sc max =",null,null,80,null,"mm",null,null,null,null,null,null,null,null,null,null,null,null,null,null,null,null,null,null,"sc max =",null,null,200,null,"mm"]
[null,null,"sc max = so max = D / 5 =",null,null,null,null,null,null,null,{"$f":"+AB161","v":600},null," /",5,"=",{"$f":"+K221/N221","v":120},null,"mm",null,null,null,null,null,null,null,null,"sc max = D / 2 =",null,null,null,null,{"$f":"+AB161","v":600},null," /",2,"=",{"$f":"+AF221/AI221","v":300},null,"mm"]
[null,null,"kullanılacak  sc =",null,null,null,null,{"$f":"ROUNDDOWN(MIN(AC217,F220,P221,AH212),0)","v":80},null,"mm",null,null,null,null,null,null,null,null,null,null,null,null,null,null,null,null,"kullanılacak  sc =",null,null,null,null,{"$f":"ROUNDDOWN(MIN(AH212,AD220,AK221),0)","v":200},null,"mm"]
[]
[]
[null,"TBDY-2018 PERDE MİNİMUM ETRİYE HESABI  \n(inş.müh. Gürcan BERBEROĞLU tel:0532 366 02 04   www.betoncelik.com )                                                                                                                                                                     "]
[null,null,null,null,null,null,null,null,null,null,null,null,null,null,null,null,null,null,null,null,null,null,null,null,null,null,null,null,"Dikkat sadece sarı hücrelere data girilecek."]
[]
[null,null,null,null,null,null,null,null,null,null,null,null,null,null,null,null,null,null,null,null,null,null,null,null,null,null,null,null,null,null,null,null,"a","m"]
[null,null,null,null,null,null,null,null,null,null,null,null,null,null,null,null,null,null,null,null,null,null,null,null,null,null,null,null,null,null,null,null,null,{"$f":"+AJ236-AH240","v":10},null,null,null,"kritik perde yüksekliği dışında"]
[null,"s2 =",null,{"$f":"+AP232","v":200},null,"mm",null,null,null,null,null,null,null,null,null,null,null,null,null,null,null,null,null,null,null,null,null,null,null,null,null,null,null,null,null,null,null,"s2 =",null,200,null,"mm"]
[null,null,null,null,null,null,null,null,null,null,null,null,null,null,null,null,null,null,null,null,null,null,null,null,null,null,null,null,null,null,null,null,null,null,null,null,null,"s2 = bw =",null,null,null,{"$f":"+D261","v":300},null,"mm"]
[null,null,null,null,null,null,null,null,null,null,null,null,null,null,null,null,null,null,null,null,null,null,null,null,null,null,null,null,null,null,null,null,null,"kritik dışı =",null,null,null,"seçilen  s2 =",null,null,null,{"$f":"MIN(AP231,AN230)","v":200},null,"mm"]
[]
[null,null,null,null,null,null,null,null,null,null,null,null,null,null,null,null,null,null,null,null,null,null,null,null,null,null,null,null,null,null,null,null,null,null,null,null,null,"kritik perde yüksekliğince"]
[null,null,null,null,null,null,null,null,null,null,null,null,null,null,null,null,null,null,null,null,null,null,null,null,null,null,null,null,null,null,null,null,null,null,null,"m",null,"s1min =",null,null,50,null,"mm"]
[null,null,null,null,null,null,null,null,null,null,null,null,null,null,null,null,null,null,null,null,null,null,null,null,null,null,null,null,null,null,null,null,null,null,null,15,null,"s1max =",null,null,150,null,"mm"]
[null,null,null,null,null,null,null,null,null,null,null,null,null,null,null,null,null,null,null,null,null,null,null,null,null,null,null,null,null,null,null,null,null,null,null,null,null,"s1max = bw / 2 =",null,null,null,null,null,{"$f":"+D261","v":300},null," /",2,"=",{"$f":"+AR237/AU237","v":150},null,"mm"]
[null,null,null,null,null,null,null,null,null,null,null,null,null,null,null,null,null,null,null,null,null,null,null,null,null,null,null,null,null,null,null,null,null,null,null,null,null,"seçilen  s1 =",null,null,null,{"$f":"MAX(MIN(AW237,AO236),AO235)","v":150},null,"mm"]
[null,null,null,null,null,null,null,null,null,null,null,null,null,null,null,null,null,null,null,null,null,null,null,null,null,null,null,null,null,null,null,null,null,"m",null,"yapı perde yüksekliği ="]
[null,null,null,null,null,null,null,null,null,null,null,null,null,null,null,null,null,null,null,null,null,null,null,null,null,null,null,null,null,null,null,null,null,{"$f":"+E301","v":5},null,null,null,"tüm perde boyunca"]
[null,null,null,null,null,"a",null,null,null,null,null,null,null,null,null,null,null,null,null,null,null,null,null,null,null,null,null,null,null,null,null,null,null,null,null,null,null,"s3 =",null,250,null,"mm"]
[]
[null,null,null,null,null,null,null,null,null,null,null,null,null,null,null,null,null,null,null,null,null,null,null,null,null,null,null,null,null,null,null,null,null,"kritik per. yük. Hcr ="]
[]
[null,"s1 =",null,{"$f":"+O280","v":95},null,"mm"]
[]
[]
[]
[]
[]
[]
[null,null,null,null,null,null,null,null,null,null,null,null,null,null,null,null,"kesit  a - a"]
[null,null,null,null,null,null,null,"(kritik perde yüksekliğince)",null,null,null,null,null,null,null,null,null,null,null,null,null,"(kritik perde yüksekliği dışında)"]
[]
[]
[null,null,null,null,null,null,"tüm sol kafa donatı",null,null,null,null,null,null,null,null,null,null,null,null,null,null,null,null,null,null,null,null,"tüm sağ kafa donatı"]
[null,null,null,null,null,null,15,null,16,null,null,null,null,"tüm orta donatı",null,null,null,null,null,null,null,"tüm orta donatı",null,null,null,null,null,10,null,16]
[null,null,null,null,null,null,null,null,null,null,null,null,null,14,null,16,null,null,null,null,null,14,null,16]
[]
[null,null,null,null,null,null,null,null,null,null,null,null,null,null,null,null,null,null,null,null,null,null,null,null,null,null,null,null,null,null,null,null,null,null,null,"Gövde etriyesi hesabı"]
[null,"bw =",null,300,null,"mm",null,null,null,null,null,null,null,null,null,null,null,null,null,null,null,null,null,null,null,null,null,null,null,null,null,null,null,null,null,"r >= 0,0025 olmalı"]
[null,null,null,null,null,null,null,null,null,null,null,null,null,null,null,null,null,null,null,null,null,null,null,null,null,null,null,null,null,null,null,null,null,null,null,"Ao =",null,{"$f":"2*PI()*O272^2/4","v":226.1946710584651},null,null,"mm²"]
[null,null,null,null,null,null,null,null,null,null,null,null,null,null,null,null,null,null,null,null,null,null,null,null,null,null,null,null,null,null,null,null,null,null,null,"s=",250,null,"mm"]
[null,null,null,null,null,null,null,null,null,null,null,null,null,null,null,null,null,null,null,null,null,null,null,null,null,null,null,null,null,null,null,null,null,null,null,"r = Ao / ( s * bw ) =",null,null,null,null,null,{"$f":"+AL262","v":226.1946710584651},null,null," /(",{"$f":"+AK263","v":250},null,"*",{"$f":"+D261","v":300},null,")"]
[null,null,null,null,null,null,null,null,null,null,null,null,null,null,{"$f":"(W268+2*G294)/(N258/2+1)","v":108.75},null,"mm",null,null,null,null,{"$f":"(W267+2*G294)/(V258/2+1)","v":158.75},null,"mm",null,null,null,null,null,null,null,null,null,null,null,"r =",null,{"$f":"+AP264/(AT264*AW264)","v":3.0159289474462015E-3},null,null,{"$f":"IF(AL265<AP265,\"<\",\">\")","v":">"},2.5000000000000001E-3]
[null,null,null,null,null,null,null,null,null,null,null,null,null,null,{"$f":"IF(AND(O265<=250,AC325>=S325),\"\",\"uygun değil.\")","v":""},null,null,null,null,null,null,{"$f":"IF(AND(V265<=250,AJ325>=Z325),\"\",\"uygun değil.\")","v":""},null,null,null,null,null,null,null,null,null,null,null,null,null,null,null,null,null,null,{"$f":"IF(AND(AK263<=250,AL265>=AP265),\"girilen etriye aralığı yeterli.\",\"girilen etriye aralık fazla.azalt.\")","v":"girilen etriye aralığı yeterli."}]
[null,null,null,null,null,null,null,null,null,null,null,null,"kritik perde yüksekliği dışında     b=",null,null,null,null,null,null,null,null,null,{"$f":"S270-2*AC268","v":1200},null,"mm"]
[null,null,null,null,null,null,null,null,850,null,"mm",null,"kritik perde yüksekliğince           b=",null,null,null,null,null,null,null,null,null,{"$f":"+S270-2*I268","v":800},null,"mm",null,null,null,650,null,"mm"]
[]
[null,null,null,null,null,null,null,null,null,null,null,null,null,null,null,null,"Lw =",null,2500,null,"mm",null,null,null,null,null,null,null,null,null,null,null,null,null,"kritik perde yüksekliğince çiroz 10 adet/m²"]
[null,null,null,null,null,null,null,null,null,null,null,null,null,null,null,null,null,null,null,null,null,null,null,null,null,null,null,null,null,null,null,null,null,null,{"$f":"S270/1000*AH240*10","v":125},null,"adet çiroz"]
[null,null,null,null,null,null,null,null,null,null,null,null,null,null,12,null,{"$f":"+AK263","v":250},null,"mm/mm",null,null,null,null,null,null,null,null,null,null,null,null,null,null,null,"kritik perde yüksekliği dışında çiroz 4 adet/m²"]
[null,null,null,null,null,null,null,null,null,null,null,null,null,null,null,"L=",{"$f":"(D261-2*G2942*I257)/2+S270-2*G294","v":2580},null,null,"mm",null,null,null,null,null,null,null,null,null,null,null,null,null,null,{"$f":"S270/1000*AH229*4","v":100},null,"adet çiroz"]
[]
[]
[null,null,null,null,null,null,null,null,null,null,null,null,null,null,{"$f":"+O272","v":12},null,{"$f":"+Q272","v":250},null,"mm/mm"]
[null,null,null,null,null,null,null,null,null,null,null,null,null,null,null,"L=",{"$f":"+Q273","v":2580},null,null,"mm"]
[null,null,null,null,null,null,null,null,null,null,null,{"$f":"MAX(6*M280,80)","v":80},null,null,null,null,null,null,null,null,null,null,null,null,null,null,null,null,null,null,null,null,{"$f":"+L278","v":80}]
[null,null,null,null,null,null,null,null,null,null,null,null,"uç bölgesi etriyesi",null,null,null,null,null,null,null,null,null,null,null,null,null,null,null,null,null,null,null,null,"uç bölgesi etriyesi"]
[null,null,null,null,null,null,null,null,null,null,null,null,10,null,95,null,"mm",null,null,null,null,null,null,null,null,null,null,null,null,null,null,null,null,{"$f":"+M280","v":10},null,{"$f":"+O280","v":95},null,"mm"]
[null,null,null,null,null,{"$f":"+D261-2*G294+I257+M280","v":256},null,null,null,null,null,null,"L=",{"$f":"2*(F281+I282+L278)","v":2284},null,null,"mm",null,null,null,null,null,null,null,null,null,{"$f":"+D261-2*G294+AD257+AH280","v":256},null,null,null,null,null,null,"L=",{"$f":"2*(AA281+AD282+AG278)","v":1884},null,null,"mm"]
[null,null,null,null,null,null,null,null,{"$f":"+I268-2*G294+I257+M280","v":806},null,null,null,null,null,null,null,null,null,null,null,null,null,null,null,null,null,null,null,null,{"$f":"AC268-2*G294+AD257+AH280","v":606}]
[null,null,"Beton ve donatı şartları :",null,null,null,null,null,null,null,{"$f":"IF(F284>50,\"C50 den fazla beton kullanıldığında aşağıdaki perde moment kapasite hesabı kullanılamaz.\",IF(F284<25,\"C25 den az beton kullanılamaz.\",\"\"))","v":""}]
[null,null,"fck = C = ",null,null,35,"N/mm² (Mpa.) (beton silindirik karakteristik mukavemeti)",null,null,null,null,null,null,null,null,null,null,null,null,null,null,null,null,null,null,null,null,null,"Nd =",null,8000,null,null,"KN",null,"(hesap eksenel kuvvet)"]
[null,null,"fyk = S = ",null,null,420,null,"N/mm² (Mpa.) (boyuna donatı çelik akma mukavemeti)",null,null,null,null,null,null,null,null,null,null,null,null,null,null,null,null,null,null,null,null,"minimum perde kesiti sağlaması  (TBDY-2018 madde 7.6.1.1 uyarınca)"]
[null,null,"fywk = S = ",null,null,null,420,null,"N/mm² (Mpa.) (etriye çelik akma mukavemeti)",null,null,null,null,null,null,null,null,null,null,null,null,null,null,null,null,null,null,null,"Ndm =< Ac * 0,35 * fck  olmalı",null,null,null,null,null,null,null,null,null,"Ndm =",null,{"$f":"+AE284","v":8000},null,null,"KN"]
[null,null,"gmc =",null,1.5,null,null,null,null,null,{"$f":"IF(F285<420,\"S420 den düşük çelik kullanılamaz.\",\"\")","v":""},null,null,null,null,null,null,null,null,null,null,null,null,null,null,null,null,null,"Ac * 0,35 * fck =",null,null,null,null,{"$f":"+S270","v":2500},null,"*",{"$f":"+D261","v":300},null,"*",0.35,null,"*",{"$f":"+F284","v":35}," /",1000,null,"=",{"$f":"+AH287*AK287*AN287*AQ287/AS287","v":9187.5},null,null,"KN"]
[null,null,"fcd =",null,{"$f":"+F284","v":35}," / ",{"$f":"+E287","v":1.5},null,"=",{"$f":"+E288/G288","v":23.333333333333332},null,"N/mm²",null,null,null,null,null,null,null,null,null,null,null,null,null,null,null,null,"Ndm =",null,{"$f":"+AO286","v":8000},null,null,"KN",null,{"$f":"IF(AE288<AP288,\"<\",\">\")","v":"<"},"Ac * 0,35 * fck =",null,null,null,null,{"$f":"+AV287","v":9187.5},null,null,"KN",null,{"$f":"IF(AE288<AP288,\"kesit uygun.\",\"kesit uygun değil.\")","v":"kesit uygun."}]
[null,null,"gms =",null,1.1499999999999999]
[null,null,"fyd =",null,{"$f":"+F285","v":420},null," / ",{"$f":"+E289","v":1.1499999999999999},null,"=",{"$f":"+E290/H290","v":365.21739130434787},null,"N/mm²"]
[null,null,"fywd =",null,null,{"$f":"+G286","v":420},null," / ",{"$f":"+E289","v":1.1499999999999999},null,"=",{"$f":"+F291/I291","v":365.21739130434787},null,"N/mm²"]
[null,null,"fctk = 0.35 * Ö fck =",null,null,null,null,null,0.35,null,"*Ö",{"$f":"+F284","v":35},"=",{"$f":"I292*SQRT(L292)","v":2.0706279240848655},null,"N/mm²"]
[null,null,"fctd = fctk / gmc =",null,null,null,null,{"$f":"+N292","v":2.0706279240848655},null," /",{"$f":"+E287","v":1.5},null,"=",{"$f":"+H293/K293","v":1.380418616056577},null,"N/mm²"]
[null,null,"pas payı  d' =",null,null,null,35,null,"mm  (pas payı : yapı kenar kolonlarda 25mm ; yapı içindeki kolonlarda 20mm)",null,null,null,null,null,null,null,null,null,null,null,null,null,null,null,null,null,null,null,null,null,null,null,{"$f":"IF(G294<=20+J295/2+I257/2,\"artır.\",\"\")","v":""}]
[null,null,"kat yüksekliği      hkat =",null,null,null,null,null,null,3,null,"m"]
[null,null,"tüm bina perde yüksekliği    Hw =",null,null,null,null,null,null,null,null,null,150,null,"m"]
[null,null,"kritik perde yüksekliği (TBDY-2018 madde 7.6.2.2 uyarınca)"]
[null,null,"Hcr = min ( max ( Lw ; Hw / 6 ) ; 2 * Lw )"]
[null,null,"max ( Lw ; Hw / 6 ) = max(",null,null,null,null,null,null,null,{"$f":"+S270/1000","v":2.5},null,";",{"$f":"+M296","v":150},null," /",6,"=",{"$f":"+N299/Q299","v":25},null,")=",{"$f":"MAX(K299,S299)","v":25},null,"m"]
[null,null,"Hcr = min ( max ( Lw ; Hw / 6 ) ; 2 * Lw ) = min(",null,null,null,null,null,null,null,null,null,null,null,null,null,{"$f":"+V299","v":25},null,";",2,"*",{"$f":"+K299","v":2.5},null,"=",{"$f":"+T300*V300","v":5},null,")=",{"$f":"MIN(Q300,Y300)","v":5},null,"m"]
[null,null,"Hcr =",null,{"$f":"+AB300","v":5},null,"m"]
[null,null,"Hw / Lw >2 ise perde uç bölgesi oluşturulmalı (TBDY-2018 madde 7.6.2.1 uyarınca)"]
[null,null,"Hw / Lw =",null,null,null,{"$f":"+M296","v":150},null," /",{"$f":"+S270/1000","v":2.5},null,"=",{"$f":"+G303/J303","v":60},null,{"$f":"IF(M303>P303,\">\",\"<\")","v":">"},2,null,{"$f":"IF(M303>P303,\"uç bölgesi oluşturulmalı.bu hesap kullanılabilir.\",\"uç bölgesi oluşturulmasına gerek yok.bu hesap kullanılamaz.\")","v":"uç bölgesi oluşturulmalı.bu hesap kullanılabilir."}]
[null,null,"Luç >= 2 * bw ; Luç >= 0,20 * Lw olmalı"]
[null,null,"Luç =",null,{"$f":"+I268","v":850},null,"mm"]
[null,null,"2 * bw =",null,null,2,"*",{"$f":"+D261","v":300},null,"=",{"$f":"+F306*H306","v":600},null,"mm"]
[null,null,"0,2 * Lw =",null,null,null,0.2,null,"*",{"$f":"+S270","v":2500},null,"=",{"$f":"+G307*J307","v":500},null,"mm"]
[null,null,{"$f":"+E305","v":850},null,"mm",null,{"$f":"IF(C308<H308,\"<\",\">\")","v":">"},{"$f":"+K306","v":600},null,"mm",null,{"$f":"IF(C308>=H308,\"uygun.\",\"uygun değil.Luç artır.\")","v":"uygun."}]
[null,null,{"$f":"+C308","v":850},null,"mm",null,{"$f":"IF(C309<H309,\"<\",\">\")","v":">"},{"$f":"+M307","v":500},null,"mm",null,{"$f":"IF(C309>=H309,\"uygun.\",\"uygun değil.Luç artır.\")","v":"uygun."}]
[null,null,"Lw >= 6 * bw"]
[null,null,"6 * bw =",null,null,6,"*",{"$f":"+D261","v":300},null,"=",{"$f":"+F311*H311","v":1800},null,"mm"]
[null,null,"Lw =",null,{"$f":"+S270","v":2500},null,"mm"]
[null,null,{"$f":"+E312","v":2500},null,"mm",null,{"$f":"IF(C313<H313,\"<\",\">\")","v":">"},{"$f":"+K311","v":1800},null,"mm",null,{"$f":"IF(C313>=H313,\"uygun.\",\"uygun değil.\")","v":"uygun."}]
[null,null,"min bw >= min ( 250mm ; hkat /16)   (TBDY-2018 madde 7.6.1.2 (a) uyarınca)"]
[null,null,"bw =",null,{"$f":"+D261","v":300},null,"mm"]
[null,null,"hkat / 16 =",null,null,null,{"$f":"+J295*1000","v":3000},null," /",16,"=",{"$f":"+G316/J316","v":187.5},null,"mm"]
[null,null,{"$f":"+E315","v":300},null,"mm",null,{"$f":"IF(C317<H317,\"<\",\">\")","v":">"},250,null,"mm",null,{"$f":"IF(C317>=H317,\"uygun.\",\"uygun değil.\")","v":"uygun."}]
[null,null,{"$f":"+E315","v":300},null,"mm",null,{"$f":"IF(C318<H318,\"<\",\">\")","v":">"},{"$f":"+L316","v":187.5},null,"mm",null,{"$f":"IF(C318>=H318,\"uygun.\",\"uygun değil.\")","v":"uygun."}]
[null,null,"uç bölge düşey donatı   min Asuç > 4Ø14  ; minruç = Asuç / ( bw * Lw) >=0,002 & 0,001 olmalı  (TBDY-2018 madde 7.6.5.1 uyarınca)"]
[null,null,"Asuç =",null,null,{"$f":"G257*PI()*I257^2/4","v":3015.9289474462012},null,"mm²",null,{"$f":"IF(F320<K320,\"<\",\">\")","v":">"},{"$f":"4*PI()*14*14/4","v":615.75216010359941},null,"mm²",null,{"$f":"IF(F320>=K320,\"uygun.\",\"uygun değil.\")","v":"uygun."}]
[null,null,"minruç = Asuç / ( bw * Lw ) =",null,null,null,null,null,null,null,null,{"$f":"+F320","v":3015.9289474462012},null," /(",{"$f":"+D261","v":300},null,"*",{"$f":"+S270","v":2500},null,")=",{"$f":"+L321/(O321*R321)","v":4.0212385965949348E-3},null,null,{"$f":"IF(U321<Y321,\"<\",\">\")","v":">"},2E-3,null,null,{"$f":"IF(U321>=Y321,\"uygun.\",\"uygun değil.\")","v":"uygun."},null,null,null,null,null,null,null,"(kritik perde yüksekliğince)"]
[null,null,"Asuç =",null,null,{"$f":"AB257*PI()*AD257^2/4","v":2010.6192982974676},null,"mm²",null,{"$f":"IF(F322<K322,\"<\",\">\")","v":">"},{"$f":"4*PI()*14*14/4","v":615.75216010359941},null,"mm²",null,{"$f":"IF(F322>=K322,\"uygun.\",\"uygun değil.\")","v":"uygun."}]
[null,null,"minruç = Asuç / ( bw * Lw ) =",null,null,null,null,null,null,null,null,{"$f":"+F322","v":2010.6192982974676},null," /(",{"$f":"+D261","v":300},null,"*",{"$f":"+S270","v":2500},null,")=",{"$f":"+L323/(O323*R323)","v":2.6808257310632902E-3},null,null,{"$f":"IF(U323<Y323,\"<\",\">\")","v":">"},1E-3,null,null,{"$f":"IF(U323>=Y323,\"uygun.\",\"uygun değil.\")","v":"uygun."},null,null,null,null,null,null,null,"(kritik perde yüksekliği dışında)"]
[null,null,"gövde düşey donatı (TBDY-2018 madde 7.6.3.1 uyarınca)"]
[null,null,"As = rmin * b * h =",null,null,null,null,null,2.5000000000000001E-3,null,null,"*",{"$f":"+D261","v":300},null,"*",1000,null,"=",{"$f":"I325*M325*P325","v":750},null,"mm² / m",null,null,{"$f":"IF(S325<=AC325,\"<\",\">\")","v":"<"},"As seçilen =",null,null,null,{"$f":"1000*(2*PI()*P258^2/4)/O265","v":3697.6906635355722},null,"mm² /m",null,null,{"$f":"IF(C249>250,\"uygun değil.\",IF(S325<AC325,\"uygun.\",\"uygun değil.\"))","v":"uygun."},null,null,null,null,null,null,null,"(kritik perde yüksekliğince)"]
[null,null,"As = rmin * b * h =",null,null,null,null,null,2.5000000000000001E-3,null,null,"*",{"$f":"+M325","v":300},null,"*",1000,null,"=",{"$f":"I326*M326*P326","v":750},null,"mm² / m",null,null,{"$f":"IF(S326<=AC326,\"<\",\">\")","v":"<"},"As seçilen =",null,null,null,{"$f":"1000*(2*PI()*X258^2/4)/V265","v":2533.0636828944471},null,"mm² /m",null,null,{"$f":"IF(C250>250,\"uygun değil.\",IF(S326<AC326,\"uygun.\",\"uygun değil.\"))","v":"uygun."},null,null,null,null,null,null,null,"(kritik perde yüksekliği dışında)"]
[null,null,"uç bölgesi etriye  (TBDY-2018 madde 7.6.5.2 (b) uyarınca)"]
[null,null,"Ash / s = 0,0075 * s * bk * ( fck / fywk ) * ( 2 / 3 ) "]
[null,null,"Ash / s =",null,null,7.4999999999999997E-3,null,null,"*",{"$f":"D261-G294*2+M280+I257","v":256},null,"*(",{"$f":"+F284","v":35}," /",{"$f":"+G286","v":420},null,")*(",2," /",3,")=",{"$f":"+F329*J329*(M329/O329)*(R329/T329)","v":0.10666666666666665},null,null,"mm² /m"]
[null,null,"Ash / s =",null,null,{"$f":"2*PI()*M280^2/4","v":157.07963267948966},null," /",{"$f":"+O280","v":95},null,"=",{"$f":"+F330/I330","v":1.6534698176788385},null,null,"mm² /m"]
[null,null,{"$f":"+L330","v":1.6534698176788385},null,null,"mm² /m",null,null,{"$f":"IF(C331<J331,\"<\",\">\")","v":">"},{"$f":"+V329","v":0.10666666666666665},null,null,"mm² /m",null,null,null,{"$f":"IF(C331>J331,\"uygun.\",\"uygun değil.\")","v":"uygun."}]
[null,null,"uç bölgesi etriye aralığı şartları (TBDY-2018 madde 7.6.5.2 (b) uyarınca)"]
[null,null,"s =< bw / 3 ; s =< 150mm  ; s=< 6 * Øt   olmalı."]
[null,null,"s=",{"$f":"+O280","v":95},null,"mm",null,{"$f":"IF(D334<L334,\"<\",\">\")","v":"<"},"bw / 3 =",null,null,{"$f":"+D261/3","v":100},null,"mm",null,{"$f":"IF(D334<=L334,\"uygun.\",\"uygun değil.\")","v":"uygun."}]
[null,null,"s=",{"$f":"+D334","v":95},null,"mm",null,{"$f":"IF(D335<I335,\"<\",\">\")","v":"<"},150,null,"mm",null,{"$f":"IF(D335<=I335,\"uygun.\",\"uygun değil.\")","v":"uygun."}]
[null,null,"6 * Øt =",null,null,6,"*",{"$f":"I257","v":16},"=",{"$f":"+F336*H336","v":96},null,"mm"]
[null,null,"s=",{"$f":"+D334","v":95},null,"mm",null,{"$f":"IF(D337<I337,\"<\",\">\")","v":"<"},{"$f":"+J336","v":96},null,"mm",null,{"$f":"IF(D337<=I337,\"uygun.\",\"uygun değil.\")","v":"uygun."}]
[null,null,"Ø >= 8mm",null,null,null,{"$f":"IF(M280>=8,\"uygun.\",\"uygun değil.\")","v":"uygun."}]